[Event "*** Titled Tuesday Blitz"]
[Site "Chess.com"]
[Date "2019.05.07"]
[Round "6"]
[White "Slovak_fighter2000"]
[Black "Satscho"]
[Result "1-0"]
[WhiteElo "2431"]
[BlackElo "2289"]
[TimeControl "180+2"]
[EndTime "14:27:38 PDT"]
[Termination "Slovak_fighter2000 won by checkmate"]

1. e4 {[%clk 0:02:38.5]} 1... c6 {[%clk 0:02:58.9]} 2. d4 {[%clk 0:02:20.6]}
2... d5 {[%clk 0:02:59.9]} 3. e5 {[%clk 0:02:21.4]} 3... Bf5 {[%clk 0:02:57.7]}
4. g4 {[%clk 0:02:22.7]} 4... Be4 {[%clk 0:02:40.5]} 5. f3 {[%clk 0:02:22.5]}
5... Bg6 {[%clk 0:02:42.1]} 6. h4 {[%clk 0:02:23.1]} 6... h5 {[%clk 0:02:42.1]}
7. e6 {[%clk 0:02:11.1]} 7... Qd6 {[%clk 0:02:42.5]} 8. exf7+ {[%clk 0:02:11]}
8... Bxf7 {[%clk 0:02:44]} 9. Ne2 {[%clk 0:02:11.3]} 9... e5 {[%clk 0:02:32.3]}
10. dxe5 {[%clk 0:02:07]} 10... Qxe5 {[%clk 0:02:34.2]} 11. Nc3 {[%clk
0:02:07.1]} 11... Bb4 {[%clk 0:02:21.8]} 12. Bf4 {[%clk 0:02:07.4]} 12... Qe7
{[%clk 0:02:16.7]} 13. g5 {[%clk 0:02:02.7]} 13... Nd7 {[%clk 0:02:13.5]} 14.
Qd4 {[%clk 0:01:59.5]} 14... Rh7 {[%clk 0:01:46.9]} 15. O-O-O {[%clk 0:01:53.9]}
15... Qc5 {[%clk 0:01:24.2]} 16. Qd3 {[%clk 0:01:50.2]} 16... g6 {[%clk
0:01:20.8]} 17. Bh3 {[%clk 0:01:34.7]} 17... O-O-O {[%clk 0:01:09.6]} 18. Be3
{[%clk 0:01:27.9]} 18... Qa5 {[%clk 0:01:01.1]} 19. a3 {[%clk 0:01:28]} 19...
Bd6 {[%clk 0:01:00.9]} 20. Bf4 {[%clk 0:01:20.1]} 20... Qc7 {[%clk 0:00:55.6]}
21. Bxd6 {[%clk 0:01:20.9]} 21... Qxd6 {[%clk 0:00:57.5]} 22. Ne4 {[%clk
0:01:19.7]} 22... Qe5 {[%clk 0:00:43.2]} 23. Nc5 {[%clk 0:01:07.2]} 23... Be8
{[%clk 0:00:18.9]} 24. Nxd7 {[%clk 0:01:03.2]} 24... Bxd7 {[%clk 0:00:19.7]} 25.
Bxd7+ {[%clk 0:01:03.8]} 25... Rdxd7 {[%clk 0:00:20.8]} 26. f4 {[%clk
0:01:05.4]} 26... Qe4 {[%clk 0:00:19.5]} 27. Qxe4 {[%clk 0:01:03.2]} 27... dxe4
{[%clk 0:00:21.1]} 28. f5 {[%clk 0:00:56.1]} 28... gxf5 {[%clk 0:00:21]} 29. Nf4
{[%clk 0:00:57.5]} 29... Ne7 {[%clk 0:00:19.3]} 30. Rxd7 {[%clk 0:00:53.6]}
30... Kxd7 {[%clk 0:00:20.6]} 31. Rd1+ {[%clk 0:00:55.5]} 31... Nd5 {[%clk
0:00:20.7]} 32. c4 {[%clk 0:00:51.3]} 32... Kd6 {[%clk 0:00:14.7]} 33. cxd5
{[%clk 0:00:52.3]} 33... Ke5 {[%clk 0:00:16.4]} 34. d6 {[%clk 0:00:52]} 34...
Rd7 {[%clk 0:00:15.7]} 35. g6 {[%clk 0:00:50.2]} 35... Kxf4 {[%clk 0:00:15]} 36.
g7 {[%clk 0:00:51.1]} 36... Rxg7 {[%clk 0:00:15.6]} 37. d7 {[%clk 0:00:52.3]}
37... Rxd7 {[%clk 0:00:15.1]} 38. Rxd7 {[%clk 0:00:53.5]} 38... Ke3 {[%clk
0:00:16.7]} 39. Kd1 {[%clk 0:00:51.1]} 39... f4 {[%clk 0:00:09.4]} 40. Ke1
{[%clk 0:00:52.2]} 40... f3 {[%clk 0:00:09.2]} 41. Rc7 {[%clk 0:00:52.8]} 41...
Kf4 {[%clk 0:00:08.8]} 42. Rxb7 {[%clk 0:00:53.4]} 42... e3 {[%clk 0:00:09.9]}
43. Rxa7 {[%clk 0:00:52]} 43... Kg3 {[%clk 0:00:07.8]} 44. Rg7+ {[%clk
0:00:51.6]} 44... Kxh4 {[%clk 0:00:09.1]} 45. a4 {[%clk 0:00:51.4]} 45... c5
{[%clk 0:00:07.2]} 46. a5 {[%clk 0:00:52.7]} 46... Kh3 {[%clk 0:00:04.3]} 47. a6
{[%clk 0:00:53.8]} 47... Kh2 {[%clk 0:00:05]} 48. a7 {[%clk 0:00:55.2]} 48... h4
{[%clk 0:00:06.2]} 49. a8=Q {[%clk 0:00:56.5]} 49... f2+ {[%clk 0:00:05.6]} 50.
Ke2 {[%clk 0:00:57.3]} 50... h3 {[%clk 0:00:07.2]} 51. Qb8+ {[%clk 0:00:58.3]}
51... Kh1 {[%clk 0:00:08]} 52. Qg3 {[%clk 0:00:59]} 52... f1=Q+ {[%clk
0:00:08.2]} 53. Kxf1 {[%clk 0:01:00.2]} 53... e2+ {[%clk 0:00:09.8]} 54. Kxe2
{[%clk 0:01:01.5]} 54... h2 {[%clk 0:00:11.1]} 55. Qe1# {[%clk 0:01:02.5]} 1-0

[Event "*** Titled Tuesday Blitz"]
[Site "Chess.com"]
[Date "2019.05.07"]
[Round "6"]
[White "MathiasWomacka"]
[Black "Jahonas"]
[Result "0-1"]
[WhiteElo "2231"]
[BlackElo "2395"]
[TimeControl "180+2"]
[EndTime "14:27:55 PDT"]
[Termination "Jahonas won by checkmate"]

1. e4 {[%clk 0:03:01.9]} 1... c6 {[%clk 0:03:00.7]} 2. d4 {[%clk 0:03:01.8]}
2... d5 {[%clk 0:03:01.9]} 3. Nd2 {[%clk 0:03:03.2]} 3... dxe4 {[%clk 0:03:03]}
4. Nxe4 {[%clk 0:03:05.1]} 4... Nf6 {[%clk 0:03:03.4]} 5. Nxf6+ {[%clk
0:03:05.9]} 5... exf6 {[%clk 0:03:05.3]} 6. Bc4 {[%clk 0:03:05.2]} 6... Bd6
{[%clk 0:03:06.3]} 7. Qe2+ {[%clk 0:03:05]} 7... Qe7 {[%clk 0:03:07.2]} 8. Qxe7+
{[%clk 0:03:03.5]} 8... Kxe7 {[%clk 0:03:08.2]} 9. Ne2 {[%clk 0:03:04.8]} 9...
Be6 {[%clk 0:03:09.4]} 10. Bd3 {[%clk 0:03:03]} 10... Nd7 {[%clk 0:03:09.2]} 11.
Bf4 {[%clk 0:03:03.3]} 11... f5 {[%clk 0:03:06.7]} 12. O-O-O {[%clk 0:03:00.9]}
12... Nf6 {[%clk 0:03:06.9]} 13. Rhe1 {[%clk 0:02:53.5]} 13... Nd5 {[%clk
0:03:06.6]} 14. Bxd6+ {[%clk 0:02:50]} 14... Kxd6 {[%clk 0:03:08.5]} 15. a3
{[%clk 0:02:41.6]} 15... b5 {[%clk 0:03:07.8]} 16. b3 {[%clk 0:02:30.9]} 16...
g6 {[%clk 0:03:03.1]} 17. Kb2 {[%clk 0:02:24.9]} 17... Rab8 {[%clk 0:03:01.5]}
18. Nc3 {[%clk 0:02:17.5]} 18... a5 {[%clk 0:02:58.8]} 19. Nxd5 {[%clk
0:02:17.4]} 19... Bxd5 {[%clk 0:02:55]} 20. g3 {[%clk 0:02:16.5]} 20... Rhe8
{[%clk 0:02:37.8]} 21. Rxe8 {[%clk 0:02:14.4]} 21... Rxe8 {[%clk 0:02:38.1]} 22.
c4 {[%clk 0:02:15.2]} 22... bxc4 {[%clk 0:02:38.9]} 23. bxc4 {[%clk 0:02:15.6]}
23... Bf3 {[%clk 0:02:39.3]} 24. Rb1 {[%clk 0:02:00.7]} 24... Be2 {[%clk
0:02:36.4]} 25. Kc3 {[%clk 0:02:00.8]} 25... Bxd3 {[%clk 0:02:33.2]} 26. Kxd3
{[%clk 0:02:02.7]} 26... Kc7 {[%clk 0:02:32.5]} 27. d5 {[%clk 0:01:01.1]} 27...
cxd5 {[%clk 0:02:28.6]} 28. cxd5 {[%clk 0:01:03]} 28... Re4 {[%clk 0:02:23.9]}
29. Kc3 {[%clk 0:00:33.4]} 29... Ra4 {[%clk 0:02:23.3]} 30. Kb3 {[%clk
0:00:33.6]} 30... Rd4 {[%clk 0:02:23.6]} 31. Rc1+ {[%clk 0:00:30.9]} 31... Kd6
{[%clk 0:02:20.5]} 32. Rc6+ {[%clk 0:00:30.9]} 32... Kxd5 {[%clk 0:02:20.9]} 33.
Rf6 {[%clk 0:00:32.3]} 33... a4+ {[%clk 0:02:14.7]} 34. Kc3 {[%clk 0:00:31.7]}
34... Rc4+ {[%clk 0:02:06.5]} 35. Kd3 {[%clk 0:00:32.5]} 35... Rc1 {[%clk
0:01:57.3]} 36. Ra6 {[%clk 0:00:32.8]} 36... Rf1 {[%clk 0:01:51.4]} 37. Ra5+
{[%clk 0:00:33.4]} 37... Ke6 {[%clk 0:01:39.2]} 38. Ke3 {[%clk 0:00:34.6]} 38...
f4+ {[%clk 0:01:35.3]} 39. gxf4 {[%clk 0:00:33.3]} 39... Rh1 {[%clk 0:01:35.4]}
40. Rxa4 {[%clk 0:00:22.7]} 40... Rxh2 {[%clk 0:01:35.9]} 41. Rb4 {[%clk
0:00:15.5]} 41... Rh3+ {[%clk 0:01:33.2]} 42. f3 {[%clk 0:00:15.8]} 42... Rh2
{[%clk 0:01:34.3]} 43. Rb6+ {[%clk 0:00:12.4]} 43... Ke7 {[%clk 0:01:33.8]} 44.
Rb7+ {[%clk 0:00:13.1]} 44... Kf6 {[%clk 0:01:34.5]} 45. Rb6+ {[%clk 0:00:14]}
45... Kg7 {[%clk 0:01:35.3]} 46. a4 {[%clk 0:00:11.6]} 46... Ra2 {[%clk
0:01:35.9]} 47. Ra6 {[%clk 0:00:10.4]} 47... h5 {[%clk 0:01:36.4]} 48. f5 {[%clk
0:00:11.5]} 48... g5 {[%clk 0:01:36]} 49. f4 {[%clk 0:00:02.1]} 49... g4 {[%clk
0:01:35.7]} 50. f6+ {[%clk 0:00:02.3]} 50... Kg6 {[%clk 0:01:35]} 51. Ke4 {[%clk
0:00:02.9]} 51... g3 {[%clk 0:01:34.4]} 52. f5+ {[%clk 0:00:04.1]} 52... Kg5
{[%clk 0:01:33.7]} 53. Kf3 {[%clk 0:00:06]} 53... h4 {[%clk 0:01:33.5]} 54. Ra8
{[%clk 0:00:06.9]} 54... Kxf5 {[%clk 0:01:21.5]} 55. Rh8 {[%clk 0:00:06.3]}
55... Rxa4 {[%clk 0:01:19.9]} 56. Kg2 {[%clk 0:00:04]} 56... Kxf6 {[%clk
0:01:20.6]} 57. Kh3 {[%clk 0:00:04.1]} 57... Kg7 {[%clk 0:01:19.2]} 58. Rc8
{[%clk 0:00:03.5]} 58... Kg6 {[%clk 0:01:13.2]} 59. Rc5 {[%clk 0:00:03.8]} 59...
f5 {[%clk 0:01:13.2]} 60. Kg2 {[%clk 0:00:02]} 60... Ra2+ {[%clk 0:01:12.6]} 61.
Kh3 {[%clk 0:00:02.2]} 61... Rh2# {[%clk 0:01:13.4]} 0-1

[Event "*** Titled Tuesday Blitz"]
[Site "Chess.com"]
[Date "2019.05.07"]
[Round "6"]
[White "oskariot"]
[Black "VSERGUEI"]
[Result "0-1"]
[WhiteElo "2571"]
[BlackElo "2632"]
[TimeControl "180+2"]
[EndTime "14:28:02 PDT"]
[Termination "VSERGUEI won on time"]

1. b3 {[%clk 0:03:01.9]} 1... d5 {[%clk 0:02:59]} 2. Bb2 {[%clk 0:03:02]} 2...
Bf5 {[%clk 0:02:59.8]} 3. e3 {[%clk 0:03:01.5]} 3... e6 {[%clk 0:03:00.7]} 4.
Nf3 {[%clk 0:03:02.7]} 4... Nf6 {[%clk 0:03:00.9]} 5. g3 {[%clk 0:03:02.1]} 5...
Be7 {[%clk 0:03:01.1]} 6. Bg2 {[%clk 0:03:03.6]} 6... O-O {[%clk 0:03:01.9]} 7.
O-O {[%clk 0:03:05.2]} 7... h6 {[%clk 0:03:02.6]} 8. d3 {[%clk 0:03:06.6]} 8...
c5 {[%clk 0:03:02.7]} 9. Nbd2 {[%clk 0:03:08.1]} 9... Nc6 {[%clk 0:03:02.9]} 10.
Qe2 {[%clk 0:03:09.6]} 10... Bh7 {[%clk 0:03:03.5]} 11. a3 {[%clk 0:03:09.6]}
11... b5 {[%clk 0:03:03.4]} 12. e4 {[%clk 0:03:10.8]} 12... a6 {[%clk
0:03:00.8]} 13. Rad1 {[%clk 0:02:56.1]} 13... Re8 {[%clk 0:02:43.9]} 14. h3
{[%clk 0:02:56.5]} 14... Rc8 {[%clk 0:02:42.1]} 15. Rfe1 {[%clk 0:02:57]} 15...
Qb6 {[%clk 0:02:34]} 16. Nh2 {[%clk 0:02:48]} 16... a5 {[%clk 0:02:27.6]} 17.
Ng4 {[%clk 0:02:14.4]} 17... Nxg4 {[%clk 0:02:27.1]} 18. Qxg4 {[%clk 0:02:16.1]}
18... d4 {[%clk 0:02:27.6]} 19. Bc1 {[%clk 0:01:58.7]} 19... Ne5 {[%clk
0:02:16.3]} 20. Qh5 {[%clk 0:01:58.2]} 20... Bg6 {[%clk 0:02:08.1]} 21. Qe2
{[%clk 0:01:37.7]} 21... c4 {[%clk 0:02:07.8]} 22. bxc4 {[%clk 0:01:32]} 22...
bxc4 {[%clk 0:02:07.8]} 23. f4 {[%clk 0:01:33.5]} 23... c3 {[%clk 0:01:59.7]}
24. Nf3 {[%clk 0:00:51.8]} 24... Nxf3+ {[%clk 0:01:59.1]} 25. Qxf3 {[%clk
0:00:50.4]} 25... Qb5 {[%clk 0:01:43.4]} 26. g4 {[%clk 0:00:44.3]} 26... Qa4
{[%clk 0:01:43.2]} 27. Qf2 {[%clk 0:00:34.5]} 27... e5 {[%clk 0:01:30.8]} 28. f5
{[%clk 0:00:23.4]} 28... Bh7 {[%clk 0:01:30.4]} 29. h4 {[%clk 0:00:24.9]} 29...
f6 {[%clk 0:01:20.9]} 30. g5 {[%clk 0:00:25.4]} 30... fxg5 {[%clk 0:01:20.7]}
31. hxg5 {[%clk 0:00:17]} 31... Bxg5 {[%clk 0:01:20.1]} 32. Bxg5 {[%clk
0:00:16.4]} 32... hxg5 {[%clk 0:01:20.7]} 33. Rc1 {[%clk 0:00:09.8]} 33... Qxa3
{[%clk 0:01:18.3]} 34. Qg3 {[%clk 0:00:09.9]} 34... Qe7 {[%clk 0:01:17.9]} 35.
Bh3 {[%clk 0:00:07.1]} 35... Rc6 {[%clk 0:01:10.3]} 36. Kg2 {[%clk 0:00:07.6]}
36... Rh6 {[%clk 0:01:10.3]} 37. Bg4 {[%clk 0:00:08.1]} 37... Rb8 {[%clk
0:01:04]} 38. Ra1 {[%clk 0:00:06.6]} 38... Rb2 {[%clk 0:01:00.3]} 39. Re2 {[%clk
0:00:06.4]} 39... Ra6 {[%clk 0:00:57.3]} 40. Bf3 {[%clk 0:00:05.2]} 40... a4
{[%clk 0:00:56.9]} 41. Rf2 {[%clk 0:00:05.8]} 41... a3 {[%clk 0:00:56.3]} 42.
Bd1 {[%clk 0:00:06.9]} 42... a2 {[%clk 0:00:55.8]} 43. f6 {[%clk 0:00:05.5]}
43... gxf6 {[%clk 0:00:55.7]} 44. Qg4 {[%clk 0:00:06.4]} 44... Kg7 {[%clk
0:00:47.4]} 45. Qc8 {[%clk 0:00:07.2]} 45... Ra7 {[%clk 0:00:36.8]} 46. Rf1
{[%clk 0:00:04]} 46... Bg6 {[%clk 0:00:32.3]} 47. Kg3 {[%clk 0:00:03.7]} 47...
Qe8 {[%clk 0:00:27.2]} 48. Qc5 {[%clk 0:00:04.2]} 48... Qe7 {[%clk 0:00:25.6]}
49. Qc8 {[%clk 0:00:04.5]} 49... Qd7 {[%clk 0:00:25.2]} 50. Qc5 {[%clk
0:00:04.3]} 50... Qc7 {[%clk 0:00:20.9]} 51. Qd5 {[%clk 0:00:04.1]} 51... Bf7
{[%clk 0:00:21.4]} 0-1

[Event "*** Titled Tuesday Blitz"]
[Site "Chess.com"]
[Date "2019.05.07"]
[Round "6"]
[White "Witik"]
[Black "MasterKroket"]
[Result "1/2-1/2"]
[WhiteElo "2578"]
[BlackElo "2363"]
[TimeControl "180+2"]
[EndTime "14:28:03 PDT"]
[Termination "Game drawn - insufficient material"]

1. d4 {[%clk 0:03:01.9]} 1... Nf6 {[%clk 0:03:00.4]} 2. c4 {[%clk 0:03:02.6]}
2... e6 {[%clk 0:03:01.8]} 3. Nf3 {[%clk 0:03:03.3]} 3... b6 {[%clk 0:03:02.5]}
4. g3 {[%clk 0:03:04.3]} 4... Bb7 {[%clk 0:03:03.7]} 5. Bg2 {[%clk 0:03:05.2]}
5... Be7 {[%clk 0:03:04.9]} 6. O-O {[%clk 0:03:06.7]} 6... O-O {[%clk
0:03:06.5]} 7. d5 {[%clk 0:03:08.3]} 7... exd5 {[%clk 0:03:07.1]} 8. Nh4 {[%clk
0:03:09]} 8... c6 {[%clk 0:03:05.7]} 9. cxd5 {[%clk 0:03:09]} 9... Nxd5 {[%clk
0:03:06.3]} 10. Nf5 {[%clk 0:03:10.2]} 10... Nc7 {[%clk 0:03:06.7]} 11. e4
{[%clk 0:03:03.4]} 11... d5 {[%clk 0:03:07.2]} 12. exd5 {[%clk 0:02:50.6]} 12...
Nxd5 {[%clk 0:03:06.5]} 13. Qg4 {[%clk 0:02:46]} 13... Bf6 {[%clk 0:03:04.8]}
14. Nc3 {[%clk 0:02:46.7]} 14... Nxc3 {[%clk 0:02:58.9]} 15. bxc3 {[%clk
0:02:45.7]} 15... g6 {[%clk 0:02:58.7]} 16. Bh6 {[%clk 0:02:41.4]} 16... Re8
{[%clk 0:02:59.2]} 17. Rad1 {[%clk 0:02:40.8]} 17... Qc8 {[%clk 0:02:52.5]} 18.
Rd6 {[%clk 0:01:54.8]} 18... Re6 {[%clk 0:02:34.7]} 19. Rfd1 {[%clk 0:01:28.8]}
19... Na6 {[%clk 0:02:35]} 20. Bh3 {[%clk 0:00:34.9]} 20... Rxd6 {[%clk
0:02:11.7]} 21. Nxd6 {[%clk 0:00:33.6]} 21... Qxg4 {[%clk 0:02:13.1]} 22. Bxg4
{[%clk 0:00:35.2]} 22... Nc5 {[%clk 0:02:14.1]} 23. Nxb7 {[%clk 0:00:31.7]}
23... Nxb7 {[%clk 0:02:15.1]} 24. Rd7 {[%clk 0:00:33.3]} 24... Nc5 {[%clk
0:02:13.6]} 25. Rc7 {[%clk 0:00:34.4]} 25... Bxc3 {[%clk 0:02:13.7]} 26. Rxc6
{[%clk 0:00:35.1]} 26... Rd8 {[%clk 0:02:03.9]} 27. Rc7 {[%clk 0:00:31.4]} 27...
a5 {[%clk 0:02:00]} 28. h4 {[%clk 0:00:30.1]} 28... Bd2 {[%clk 0:01:56.1]} 29.
f4 {[%clk 0:00:19]} 29... Ne4 {[%clk 0:01:50.7]} 30. Kg2 {[%clk 0:00:17.9]}
30... Be3 {[%clk 0:01:49.2]} 31. Kf3 {[%clk 0:00:18.1]} 31... Nf6 {[%clk
0:01:44.3]} 32. Bg5 {[%clk 0:00:18.4]} 32... Bd4 {[%clk 0:01:44.1]} 33. Rc8
{[%clk 0:00:17.8]} 33... Rxc8 {[%clk 0:01:44.5]} 34. Bxc8 {[%clk 0:00:19.7]}
34... Ne8 {[%clk 0:01:35.2]} 35. Bd8 {[%clk 0:00:17.8]} 35... f5 {[%clk
0:01:31.2]} 36. g4 {[%clk 0:00:15.2]} 36... fxg4+ {[%clk 0:01:31]} 37. Bxg4
{[%clk 0:00:13.8]} 37... Kf7 {[%clk 0:01:31.3]} 38. Ke4 {[%clk 0:00:14]} 38...
Bc5 {[%clk 0:01:27.5]} 39. f5 {[%clk 0:00:14.4]} 39... Nd6+ {[%clk 0:01:27.8]}
40. Ke5 {[%clk 0:00:14.3]} 40... Nxf5 {[%clk 0:01:27.5]} 41. Bxf5 {[%clk
0:00:15.6]} 41... gxf5 {[%clk 0:01:29.4]} 42. Kxf5 {[%clk 0:00:17.5]} 42... a4
{[%clk 0:01:27.3]} 43. h5 {[%clk 0:00:18.6]} 43... b5 {[%clk 0:01:27.3]} 44. Ke5
{[%clk 0:00:18.6]} 44... b4 {[%clk 0:01:23.1]} 45. Bg5 {[%clk 0:00:17.1]} 45...
Be7 {[%clk 0:01:20.3]} 46. Bc1 {[%clk 0:00:16.3]} 46... Bf6+ {[%clk 0:01:20]}
47. Kd5 {[%clk 0:00:15.7]} 47... a3 {[%clk 0:01:04]} 48. Kc4 {[%clk 0:00:15.6]}
48... Be7 {[%clk 0:00:46.5]} 49. Bd2 {[%clk 0:00:16.3]} 49... Kf6 {[%clk
0:00:39.6]} 50. Bxb4 {[%clk 0:00:16.3]} 50... Bd8 {[%clk 0:00:39.1]} 51. Bxa3
{[%clk 0:00:08.3]} 51... Kg5 {[%clk 0:00:40.3]} 52. Bd6 {[%clk 0:00:09.3]} 52...
Kxh5 {[%clk 0:00:41.1]} 53. a4 {[%clk 0:00:10.8]} 53... Kg4 {[%clk 0:00:41.8]}
54. Kd5 {[%clk 0:00:11.9]} 54... h5 {[%clk 0:00:43.1]} 55. Kc6 {[%clk
0:00:12.3]} 55... Ba5 {[%clk 0:00:44]} 56. Kb5 {[%clk 0:00:13.3]} 56... Bd8
{[%clk 0:00:44.3]} 57. a5 {[%clk 0:00:14.6]} 57... Bxa5 {[%clk 0:00:45.2]} 58.
Kxa5 {[%clk 0:00:15.9]} 58... h4 {[%clk 0:00:47.1]} 59. Kb4 {[%clk 0:00:16.9]}
59... h3 {[%clk 0:00:49]} 60. Kc3 {[%clk 0:00:18.2]} 60... h2 {[%clk 0:00:50.9]}
61. Bxh2 {[%clk 0:00:18.3]} 1/2-1/2

[Event "*** Titled Tuesday Blitz"]
[Site "Chess.com"]
[Date "2019.05.07"]
[Round "6"]
[White "Vusatiuk_Vladimir"]
[Black "AndrewMcStone"]
[Result "1-0"]
[WhiteElo "2201"]
[BlackElo "2124"]
[TimeControl "180+2"]
[EndTime "14:28:05 PDT"]
[Termination "Vusatiuk_Vladimir won by resignation"]

1. e4 {[%clk 0:03:01.9]} 1... Nc6 {[%clk 0:02:57.6]} 2. Nf3 {[%clk 0:02:59.8]}
2... d6 {[%clk 0:02:56.1]} 3. c4 {[%clk 0:02:55.8]} 3... Nf6 {[%clk 0:02:41.6]}
4. Nc3 {[%clk 0:02:55.9]} 4... g6 {[%clk 0:02:40.8]} 5. d4 {[%clk 0:02:56.5]}
5... Bg7 {[%clk 0:02:41.9]} 6. Bg5 {[%clk 0:02:56.8]} 6... h6 {[%clk 0:02:39.8]}
7. Be3 {[%clk 0:02:53.3]} 7... Ng4 {[%clk 0:02:14.1]} 8. Qd2 {[%clk 0:02:54.2]}
8... Nxe3 {[%clk 0:02:13.3]} 9. Qxe3 {[%clk 0:02:56.1]} 9... e5 {[%clk
0:02:12.8]} 10. dxe5 {[%clk 0:02:54.2]} 10... dxe5 {[%clk 0:02:06.9]} 11. Rd1
{[%clk 0:02:54.2]} 11... Nd4 {[%clk 0:02:06]} 12. Nxd4 {[%clk 0:02:40.7]} 12...
exd4 {[%clk 0:02:03.1]} 13. Qd2 {[%clk 0:02:41.9]} 13... O-O {[%clk 0:01:50.7]}
14. Nb5 {[%clk 0:02:33.4]} 14... Re8 {[%clk 0:01:30.6]} 15. Bd3 {[%clk
0:02:33.5]} 15... c6 {[%clk 0:01:14.3]} 16. Na3 {[%clk 0:02:33.5]} 16... f5
{[%clk 0:01:14.2]} 17. f3 {[%clk 0:02:31.6]} 17... fxe4 {[%clk 0:01:03.6]} 18.
Bxe4 {[%clk 0:02:32.3]} 18... Rxe4+ {[%clk 0:00:42.6]} 19. fxe4 {[%clk
0:02:20.3]} 19... Qh4+ {[%clk 0:00:43.1]} 20. g3 {[%clk 0:02:11]} 20... Qxe4+
{[%clk 0:00:43.8]} 21. Kf2 {[%clk 0:02:11.2]} 21... Bg4 {[%clk 0:00:41.1]} 22.
Rhe1 {[%clk 0:02:09]} 22... Rf8+ {[%clk 0:00:09.1]} 23. Kg1 {[%clk 0:02:06.5]}
23... Qf5 {[%clk 0:00:07]} 24. Rf1 {[%clk 0:02:04.7]} 24... Qh5 {[%clk
0:00:06.1]} 25. Rxf8+ {[%clk 0:02:04.6]} 25... Kxf8 {[%clk 0:00:07.4]} 26. Rf1+
{[%clk 0:02:05]} 26... Kg8 {[%clk 0:00:08.4]} 27. Nc2 {[%clk 0:02:04.4]} 27...
Bh3 {[%clk 0:00:07.1]} 28. Rf2 {[%clk 0:01:56.5]} 28... Qc5 {[%clk 0:00:07.5]}
29. Qe2 {[%clk 0:01:21.8]} 29... Bf5 {[%clk 0:00:05.7]} 30. Ne1 {[%clk
0:01:14.2]} 30... d3 {[%clk 0:00:06.9]} 31. Nxd3 {[%clk 0:01:13.8]} 31... Bxd3
{[%clk 0:00:06.8]} 32. Qxd3 {[%clk 0:01:11.5]} 32... Bd4 {[%clk 0:00:07.6]} 33.
Qxg6+ {[%clk 0:01:12.1]} 33... Kh8 {[%clk 0:00:09]} 34. Qxh6+ {[%clk 0:01:12.9]}
34... Kg8 {[%clk 0:00:09.8]} 35. Qg6+ {[%clk 0:01:05.1]} 35... Kh8 {[%clk
0:00:10.3]} 36. Qe8+ {[%clk 0:00:56.7]} 36... Kh7 {[%clk 0:00:11.1]} 37. Qf7+
{[%clk 0:00:54.7]} 37... Kh8 {[%clk 0:00:11.4]} 38. b3 {[%clk 0:00:51.8]} 38...
a5 {[%clk 0:00:06.3]} 39. Kg2 {[%clk 0:00:49.8]} 39... Bxf2 {[%clk 0:00:05.6]}
40. Qxf2 {[%clk 0:00:51.7]} 40... Qa3 {[%clk 0:00:05.3]} 41. g4 {[%clk
0:00:49.5]} 41... a4 {[%clk 0:00:05.7]} 42. Qc2 {[%clk 0:00:42.2]} 42... axb3
{[%clk 0:00:05.7]} 43. axb3 {[%clk 0:00:44.1]} 43... Qc5 {[%clk 0:00:03.8]} 44.
h4 {[%clk 0:00:43]} 44... Qe3 {[%clk 0:00:04.7]} 45. g5 {[%clk 0:00:39.9]} 45...
Qe1 {[%clk 0:00:05.1]} 46. Qf2 {[%clk 0:00:30.9]} 46... Qe4+ {[%clk 0:00:05.3]}
47. Qf3 {[%clk 0:00:29.1]} 47... Qxh4 {[%clk 0:00:06.1]} 48. Qh3 {[%clk
0:00:29.8]} 48... Qxh3+ {[%clk 0:00:06.4]} 49. Kxh3 {[%clk 0:00:31.7]} 49... Kg7
{[%clk 0:00:07.8]} 50. Kg4 {[%clk 0:00:32.4]} 50... Kg6 {[%clk 0:00:05.2]} 51.
c5 {[%clk 0:00:32.6]} 51... Kf7 {[%clk 0:00:05.2]} 52. Kf5 {[%clk 0:00:34]}
52... Kg7 {[%clk 0:00:06.4]} 53. g6 {[%clk 0:00:35.1]} 53... Kf8 {[%clk
0:00:07.3]} 54. Kf6 {[%clk 0:00:35.5]} 54... Kg8 {[%clk 0:00:08.6]} 55. g7
{[%clk 0:00:36.5]} 1-0